[Event "Live Chess"]
[Site "Chess.com"]
[Date "2010.12.06"]
[Round "-"]
[White "hipposcottimus"]
[Black "filyok"]
[Result "0-1"]
[CurrentPosition "r5k1/p5p1/2p5/8/3bq3/8/PP4RP/7K b - -"]
[Timezone "UTC"]
[ECO "C40"]
[ECOUrl "https://www.chess.com/openings/Kings-Pawn-Opening-Kings-Knight-Busch-Gass-Gambit"]
[UTCDate "2010.12.06"]
[UTCTime "20:24:12"]
[WhiteElo "1603"]
[BlackElo "1906"]
[TimeControl "60"]
[Termination "filyok won by resignation"]
[StartTime "20:24:12"]
[EndDate "2010.12.06"]
[EndTime "20:26:09"]
[Link "https://www.chess.com/game/live/74699607"]

1. e4 {[%clk 0:01:00]} 1... e5 {[%clk 0:01:00]} 2. Nf3 {[%clk 0:00:59.7]} 2... Bc5 {[%clk 0:00:59.5]} 3. Bc4 {[%clk 0:00:54.4]} 3... Nf6 {[%clk 0:00:58.7]} 4. Nxe5 {[%clk 0:00:54]} 4... O-O {[%clk 0:00:57.9]} 5. Nxf7 {[%clk 0:00:51.9]} 5... Qe7 {[%clk 0:00:56.1]} 6. Nh6+ {[%clk 0:00:42.5]} 6... Kh8 {[%clk 0:00:53.8]} 7. Nf7+ {[%clk 0:00:42.2]} 7... Rxf7 {[%clk 0:00:52.6]} 8. Bxf7 {[%clk 0:00:40.7]} 8... Qxf7 {[%clk 0:00:52.2]} 9. O-O {[%clk 0:00:40.1]} 9... Nxe4 {[%clk 0:00:51.5]} 10. d4 {[%clk 0:00:39.5]} 10... Bb6 {[%clk 0:00:49.9]} 11. f3 {[%clk 0:00:38.5]} 11... Nd6 {[%clk 0:00:47.8]} 12. c3 {[%clk 0:00:38.2]} 12... c5 {[%clk 0:00:45.9]} 13. Bg5 {[%clk 0:00:37.6]} 13... cxd4 {[%clk 0:00:44.9]} 14. cxd4 {[%clk 0:00:37.3]} 14... Nf5 {[%clk 0:00:44.2]} 15. Kh1 {[%clk 0:00:30.9]} 15... h6 {[%clk 0:00:41.6]} 16. g4 {[%clk 0:00:24.1]} 16... hxg5 {[%clk 0:00:39]} 17. gxf5 {[%clk 0:00:23.8]} 17... Qxf5 {[%clk 0:00:38.4]} 18. Nc3 {[%clk 0:00:20.6]} 18... Bxd4 {[%clk 0:00:37.5]} 19. Rg1 {[%clk 0:00:18.4]} 19... d5 {[%clk 0:00:34.8]} 20. Rg3 {[%clk 0:00:16.2]} 20... Nc6 {[%clk 0:00:33.3]} 21. Qf1 {[%clk 0:00:15.4]} 21... Ne5 {[%clk 0:00:31]} 22. Rh3+ {[%clk 0:00:15]} 22... Kg8 {[%clk 0:00:29.4]} 23. Rg3 {[%clk 0:00:13.3]} 23... Qf4 {[%clk 0:00:28.7]} 24. Qg2 {[%clk 0:00:13]} 24... Bd7 {[%clk 0:00:26.2]} 25. Rxg5 {[%clk 0:00:12.6]} 25... Nxf3 {[%clk 0:00:23.3]} 26. Nxd5 {[%clk 0:00:08.9]} 26... Qxg5 {[%clk 0:00:19.5]} 27. Ne7+ {[%clk 0:00:08.5]} 27... Qxe7 {[%clk 0:00:17.9]} 28. Qxf3 {[%clk 0:00:08.2]} 28... Bc6 {[%clk 0:00:17.4]} 29. Qxc6 {[%clk 0:00:05.8]} 29... bxc6 {[%clk 0:00:16.1]} 30. Rg1 {[%clk 0:00:05.5]} 30... Qe4+ {[%clk 0:00:15.2]} 31. Rg2 {[%clk 0:00:03.8]} 0-1

[Event "Live Chess"]
[Site "Chess.com"]
[Date "2010.12.06"]
[Round "-"]
[White "filyok"]
[Black "hipposcottimus"]
[Result "1-0"]
[CurrentPosition "7Q/8/7k/5Pp1/3B2P1/1P1P2K1/7P/8 b - -"]
[Timezone "UTC"]
[ECO "C42"]
[ECOUrl "https://www.chess.com/openings/Petrovs-Defense-Urusov-Gambit"]
[UTCDate "2010.12.06"]
[UTCTime "20:21:56"]
[WhiteElo "1904"]
[BlackElo "1605"]
[TimeControl "60"]
[Termination "filyok won by checkmate"]
[StartTime "20:21:56"]
[EndDate "2010.12.06"]
[EndTime "20:23:53"]
[Link "https://www.chess.com/game/live/74698894"]

1. e4 {[%clk 0:01:00]} 1... e5 {[%clk 0:01:00]} 2. Bc4 {[%clk 0:00:59.6]} 2... Nf6 {[%clk 0:00:58.1]} 3. Nf3 {[%clk 0:00:59.2]} 3... Nc6 {[%clk 0:00:57.7]} 4. Ng5 {[%clk 0:00:58.2]} 4... d5 {[%clk 0:00:56.9]} 5. exd5 {[%clk 0:00:57.8]} 5... Na5 {[%clk 0:00:56.5]} 6. Bb3 {[%clk 0:00:54.3]} 6... Nxb3 {[%clk 0:00:55.3]} 7. axb3 {[%clk 0:00:53.8]} 7... Nxd5 {[%clk 0:00:55.1]} 8. d3 {[%clk 0:00:52.1]} 8... Be7 {[%clk 0:00:54.7]} 9. Nf3 {[%clk 0:00:50]} 9... f6 {[%clk 0:00:52.4]} 10. Nc3 {[%clk 0:00:49.1]} 10... O-O {[%clk 0:00:52]} 11. Nxd5 {[%clk 0:00:48.3]} 11... Qxd5 {[%clk 0:00:51.8]} 12. Be3 {[%clk 0:00:47.9]} 12... Bg4 {[%clk 0:00:50.8]} 13. O-O {[%clk 0:00:46.8]} 13... Bxf3 {[%clk 0:00:50]} 14. Qxf3 {[%clk 0:00:45.4]} 14... Qxf3 {[%clk 0:00:49.7]} 15. gxf3 {[%clk 0:00:45]} 15... f5 {[%clk 0:00:49.5]} 16. Kh1 {[%clk 0:00:44.6]} 16... f4 {[%clk 0:00:48.4]} 17. Bd2 {[%clk 0:00:44.1]} 17... Bd6 {[%clk 0:00:48.1]} 18. Rg1 {[%clk 0:00:43.1]} 18... Rf6 {[%clk 0:00:47.8]} 19. c4 {[%clk 0:00:41.8]} 19... Raf8 {[%clk 0:00:46.9]} 20. Bc3 {[%clk 0:00:40.2]} 20... R8f7 {[%clk 0:00:43.1]} 21. Rg5 {[%clk 0:00:38.9]} 21... Re7 {[%clk 0:00:41.5]} 22. Rag1 {[%clk 0:00:36.4]} 22... Ree6 {[%clk 0:00:38.2]} 23. b4 {[%clk 0:00:35.7]} 23... Rg6 {[%clk 0:00:37.3]} 24. Rxg6 {[%clk 0:00:34.5]} 24... hxg6 {[%clk 0:00:36.8]} 25. c5 {[%clk 0:00:33.1]} 25... Be7 {[%clk 0:00:36]} 26. Re1 {[%clk 0:00:31.3]} 26... b6 {[%clk 0:00:35.5]} 27. cxb6 {[%clk 0:00:28.9]} 27... axb6 {[%clk 0:00:33.9]} 28. Rxe5 {[%clk 0:00:28.4]} 28... Rxe5 {[%clk 0:00:31.3]} 29. Bxe5 {[%clk 0:00:27.6]} 29... Kf7 {[%clk 0:00:31]} 30. Bxc7 {[%clk 0:00:26.4]} 30... Bf6 {[%clk 0:00:30.7]} 31. b3 {[%clk 0:00:24]} 31... Bd4 {[%clk 0:00:30.4]} 32. Kg2 {[%clk 0:00:21.9]} 32... Bc3 {[%clk 0:00:29.9]} 33. b5 {[%clk 0:00:20.6]} 33... Bd4 {[%clk 0:00:29]} 34. Bxf4 {[%clk 0:00:19.4]} 34... Kf6 {[%clk 0:00:28.7]} 35. Be3 {[%clk 0:00:18.6]} 35... Kf5 {[%clk 0:00:28.3]} 36. Bxd4 {[%clk 0:00:17.7]} 36... Kg5 {[%clk 0:00:27.2]} 37. Bxb6 {[%clk 0:00:17.3]} 37... Kh6 {[%clk 0:00:26.1]} 38. Bd4 {[%clk 0:00:16.9]} 38... g5 {[%clk 0:00:25.9]} 39. b6 {[%clk 0:00:16.5]} 39... g6 {[%clk 0:00:25.7]} 40. b7 {[%clk 0:00:16]} 40... g4 {[%clk 0:00:25.4]} 41. fxg4 {[%clk 0:00:15.5]} 41... Kg5 {[%clk 0:00:23.9]} 42. Kg3 {[%clk 0:00:14.7]} 42... Kh6 {[%clk 0:00:21.4]} 43. f4 {[%clk 0:00:14]} 43... g5 {[%clk 0:00:21.1]} 44. f5 {[%clk 0:00:13]} 44... Kh7 {[%clk 0:00:17.9]} 45. b8=Q {[%clk 0:00:11.3]} 45... Kh6 {[%clk 0:00:16.7]} 46. Qh8# {[%clk 0:00:10]} 1-0

[Event "Live Chess"]
[Site "Chess.com"]
[Date "2010.12.06"]
[Round "-"]
[White "hipposcottimus"]
[Black "filyok"]
[Result "1-0"]
[CurrentPosition "8/6p1/5p1p/8/5k2/2B2R2/4KP1r/8 b - -"]
[Timezone "UTC"]
[ECO "C41"]
[ECOUrl "https://www.chess.com/openings/Philidor-Defense-3.d4-Bg4-4.dxe5"]
[UTCDate "2010.12.06"]
[UTCTime "20:19:06"]
[WhiteElo "1608"]
[BlackElo "1901"]
[TimeControl "60"]
[Termination "hipposcottimus won on time"]
[StartTime "20:19:06"]
[EndDate "2010.12.06"]
[EndTime "20:21:21"]
[Link "https://www.chess.com/game/live/74698165"]

1. e4 {[%clk 0:01:00]} 1... e5 {[%clk 0:01:00]} 2. Nf3 {[%clk 0:00:59.5]} 2... d6 {[%clk 0:00:58.4]} 3. d4 {[%clk 0:00:58.7]} 3... Bg4 {[%clk 0:00:58]} 4. dxe5 {[%clk 0:00:56.8]} 4... Nc6 {[%clk 0:00:54.9]} 5. Bb5 {[%clk 0:00:53]} 5... dxe5 {[%clk 0:00:52.4]} 6. Bxc6+ {[%clk 0:00:50.4]} 6... bxc6 {[%clk 0:00:50]} 7. Qxd8+ {[%clk 0:00:49.9]} 7... Rxd8 {[%clk 0:00:49.2]} 8. Nxe5 {[%clk 0:00:49.4]} 8... Bh5 {[%clk 0:00:47.4]} 9. O-O {[%clk 0:00:47.1]} 9... f6 {[%clk 0:00:45.4]} 10. Nxc6 {[%clk 0:00:45.2]} 10... Rd6 {[%clk 0:00:44.3]} 11. Nxa7 {[%clk 0:00:44.5]} 11... Be7 {[%clk 0:00:43.2]} 12. Nb5 {[%clk 0:00:43.6]} 12... Rb6 {[%clk 0:00:42]} 13. Nxc7+ {[%clk 0:00:42.5]} 13... Kd7 {[%clk 0:00:40.7]} 14. Nd5 {[%clk 0:00:41.9]} 14... Rb4 {[%clk 0:00:38.2]} 15. c3 {[%clk 0:00:38.2]} 15... Rxe4 {[%clk 0:00:37]} 16. Nd2 {[%clk 0:00:30.2]} 16... Re2 {[%clk 0:00:33.9]} 17. Nxe7 {[%clk 0:00:28.3]} 17... Nxe7 {[%clk 0:00:32.3]} 18. Rd1 {[%clk 0:00:27.6]} 18... Re6 {[%clk 0:00:29.3]} 19. Nf3+ {[%clk 0:00:27.2]} 19... Ke8 {[%clk 0:00:27.4]} 20. Rd3 {[%clk 0:00:25.3]} 20... Kf7 {[%clk 0:00:26.5]} 21. Be3 {[%clk 0:00:24]} 21... Rb8 {[%clk 0:00:25.1]} 22. Bc5 {[%clk 0:00:20.6]} 22... Rxb2 {[%clk 0:00:21.9]} 23. Rad1 {[%clk 0:00:19.2]} 23... Rxa2 {[%clk 0:00:19.5]} 24. Rd7 {[%clk 0:00:18.2]} 24... Ree2 {[%clk 0:00:17.5]} 25. Bxe7 {[%clk 0:00:15.6]} 25... Kg6 {[%clk 0:00:16.3]} 26. Bc5 {[%clk 0:00:12.8]} 26... Bxf3 {[%clk 0:00:14.5]} 27. gxf3 {[%clk 0:00:11]} 27... Rac2 {[%clk 0:00:12.6]} 28. Be3 {[%clk 0:00:10.6]} 28... Rxc3 {[%clk 0:00:11.5]} 29. R7d2 {[%clk 0:00:10.3]} 29... Rxd2 {[%clk 0:00:09.6]} 30. Rxd2 {[%clk 0:00:09.9]} 30... Rc5 {[%clk 0:00:08.4]} 31. Kg2 {[%clk 0:00:09.5]} 31... Rf5 {[%clk 0:00:07.2]} 32. Kf1 {[%clk 0:00:09.1]} 32... h6 {[%clk 0:00:06.7]} 33. Ke2 {[%clk 0:00:08.7]} 33... Rh5 {[%clk 0:00:06.1]} 34. f4 {[%clk 0:00:08.4]} 34... Rxh2 {[%clk 0:00:05.6]} 35. Bd4 {[%clk 0:00:08.2]} 35... Kf5 {[%clk 0:00:05]} 36. Bc3 {[%clk 0:00:08]} 36... Kxf4 {[%clk 0:00:04.1]} 37. Rd5 {[%clk 0:00:07.7]} 37... Ke4 {[%clk 0:00:03.4]} 38. Rd4+ {[%clk 0:00:07]} 38... Ke5 {[%clk 0:00:02.1]} 39. Rd3+ {[%clk 0:00:06.6]} 39... Ke4 {[%clk 0:00:01.4]} 40. Re3+ {[%clk 0:00:05.7]} 40... Kf4 {[%clk 0:00:00.6]} 41. Rf3+ {[%clk 0:00:04.8]} 1-0

[Event "Live Chess"]
[Site "Chess.com"]
[Date "2010.12.06"]
[Round "-"]
[White "filyok"]
[Black "hipposcottimus"]
[Result "1-0"]
[CurrentPosition "8/1p6/p4R2/4kQ2/2P4r/1P1K4/P7/8 b - -"]
[Timezone "UTC"]
[ECO "B00"]
[ECOUrl "https://www.chess.com/openings/Nimzowitsch-Defense-Kennedy-Variation"]
[UTCDate "2010.12.06"]
[UTCTime "20:16:43"]
[WhiteElo "1914"]
[BlackElo "1593"]
[TimeControl "60"]
[Termination "filyok won by checkmate"]
[StartTime "20:16:43"]
[EndDate "2010.12.06"]
[EndTime "20:18:45"]
[Link "https://www.chess.com/game/live/74697458"]

1. e4 {[%clk 0:01:00]} 1... e5 {[%clk 0:01:00]} 2. d4 {[%clk 0:00:59.6]} 2... Nc6 {[%clk 0:00:59.7]} 3. Nf3 {[%clk 0:00:59]} 3... d6 {[%clk 0:00:57.5]} 4. dxe5 {[%clk 0:00:57.6]} 4... dxe5 {[%clk 0:00:56]} 5. Qxd8+ {[%clk 0:00:55]} 5... Kxd8 {[%clk 0:00:55.7]} 6. Bb5 {[%clk 0:00:53.3]} 6... Nge7 {[%clk 0:00:51.3]} 7. Bxc6 {[%clk 0:00:52.6]} 7... Nxc6 {[%clk 0:00:50.9]} 8. Be3 {[%clk 0:00:51.1]} 8... Bg4 {[%clk 0:00:50.5]} 9. Nc3 {[%clk 0:00:48.6]} 9... Bxf3 {[%clk 0:00:49.8]} 10. gxf3 {[%clk 0:00:46.7]} 10... Kd7 {[%clk 0:00:49.4]} 11. O-O-O+ {[%clk 0:00:45.2]} 11... Bd6 {[%clk 0:00:47.1]} 12. Nb5 {[%clk 0:00:42.8]} 12... Rad8 {[%clk 0:00:46.5]} 13. Nxd6 {[%clk 0:00:41.9]} 13... cxd6 {[%clk 0:00:46.2]} 14. f4 {[%clk 0:00:39.5]} 14... Kc7 {[%clk 0:00:45.8]} 15. fxe5 {[%clk 0:00:38.4]} 15... Nxe5 {[%clk 0:00:45.5]} 16. Bf4 {[%clk 0:00:36.6]} 16... Kb8 {[%clk 0:00:44.2]} 17. Bxe5 {[%clk 0:00:35.1]} 17... dxe5 {[%clk 0:00:43.9]} 18. Rxd8+ {[%clk 0:00:33]} 18... Rxd8 {[%clk 0:00:42]} 19. Rg1 {[%clk 0:00:32.5]} 19... g6 {[%clk 0:00:41.5]} 20. Rg5 {[%clk 0:00:31.3]} 20... h6 {[%clk 0:00:39.3]} 21. Rxe5 {[%clk 0:00:30.3]} 21... f5 {[%clk 0:00:37.8]} 22. exf5 {[%clk 0:00:28.8]} 22... gxf5 {[%clk 0:00:37.2]} 23. Rxf5 {[%clk 0:00:28.4]} 23... Rg8 {[%clk 0:00:36.8]} 24. Rf6 {[%clk 0:00:26.9]} 24... Rg2 {[%clk 0:00:34.4]} 25. h4 {[%clk 0:00:24.5]} 25... Rh2 {[%clk 0:00:32.8]} 26. Rxh6 {[%clk 0:00:23.2]} 26... Rxf2 {[%clk 0:00:32.2]} 27. Rh8+ {[%clk 0:00:22.3]} 27... Kc7 {[%clk 0:00:30.5]} 28. h5 {[%clk 0:00:21.8]} 28... Kb6 {[%clk 0:00:30]} 29. h6 {[%clk 0:00:21.3]} 29... Rh2 {[%clk 0:00:29.6]} 30. h7 {[%clk 0:00:20.5]} 30... a6 {[%clk 0:00:27.9]} 31. b3 {[%clk 0:00:19.9]} 31... Ka7 {[%clk 0:00:27.4]} 32. Kb2 {[%clk 0:00:19.1]} 32... Rh1 {[%clk 0:00:27.1]} 33. Kc3 {[%clk 0:00:17.5]} 33... Rh4 {[%clk 0:00:26.7]} 34. Kb2 {[%clk 0:00:15.3]} 34... Kb6 {[%clk 0:00:26.3]} 35. c4 {[%clk 0:00:14.6]} 35... Kc7 {[%clk 0:00:25.8]} 36. Kc3 {[%clk 0:00:13.9]} 36... Kd6 {[%clk 0:00:25.4]} 37. Kd3 {[%clk 0:00:13.4]} 37... Ke6 {[%clk 0:00:25]} 38. Re8+ {[%clk 0:00:12.1]} 38... Kf6 {[%clk 0:00:24.2]} 39. h8=Q+ {[%clk 0:00:10.9]} 39... Kf7 {[%clk 0:00:23.8]} 40. Qg8+ {[%clk 0:00:09.5]} 40... Kf6 {[%clk 0:00:22.3]} 41. Re6+ {[%clk 0:00:07.7]} 41... Kf5 {[%clk 0:00:21.3]} 42. Qg6+ {[%clk 0:00:06.2]} 42... Kf4 {[%clk 0:00:19.2]} 43. Rf6+ {[%clk 0:00:05]} 43... Ke5 {[%clk 0:00:16.1]} 44. Qf5# {[%clk 0:00:04.2]} 1-0

[Event "Live Chess"]
[Site "Chess.com"]
[Date "2010.12.06"]
[Round "-"]
[White "the_klaus"]
[Black "hipposcottimus"]
[Result "0-1"]
[CurrentPosition "2r5/5kpp/8/2P2p2/3B4/1P6/P1K2PPb/3R4 w - -"]
[Timezone "UTC"]
[ECO "C46"]
[ECOUrl "https://www.chess.com/openings/Three-Knights-Opening"]
[UTCDate "2010.12.06"]
[UTCTime "20:13:45"]
[WhiteElo "1494"]
[BlackElo "1595"]
[TimeControl "60"]
[Termination "hipposcottimus won on time"]
[StartTime "20:13:45"]
[EndDate "2010.12.06"]
[EndTime "20:15:29"]
[Link "https://www.chess.com/game/live/74696698"]

1. e4 {[%clk 0:01:00]} 1... e5 {[%clk 0:01:00]} 2. Nc3 {[%clk 0:00:59.2]} 2... Nc6 {[%clk 0:00:59.7]} 3. Nf3 {[%clk 0:00:59.2]} 3... Nf6 {[%clk 0:00:59.4]} 4. d4 {[%clk 0:00:59.2]} 4... d5 {[%clk 0:00:58.8]} 5. exd5 {[%clk 0:00:57.1]} 5... e4 {[%clk 0:00:57.2]} 6. dxc6 {[%clk 0:00:54.1]} 6... exf3 {[%clk 0:00:56.9]} 7. Qxf3 {[%clk 0:00:53.2]} 7... Bg4 {[%clk 0:00:55.1]} 8. Qe3+ {[%clk 0:00:44]} 8... Be7 {[%clk 0:00:52.6]} 9. cxb7 {[%clk 0:00:43.1]} 9... Rb8 {[%clk 0:00:52.3]} 10. d5 {[%clk 0:00:39.6]} 10... O-O {[%clk 0:00:51.9]} 11. Ba6 {[%clk 0:00:35.5]} 11... Nxd5 {[%clk 0:00:50.1]} 12. Nxd5 {[%clk 0:00:34.2]} 12... Qxd5 {[%clk 0:00:49.8]} 13. Bd2 {[%clk 0:00:33.4]} 13... Qe6 {[%clk 0:00:48.6]} 14. Qxe6 {[%clk 0:00:30.9]} 14... Bxe6 {[%clk 0:00:48.3]} 15. O-O-O {[%clk 0:00:26.3]} 15... Bd5 {[%clk 0:00:47.4]} 16. c4 {[%clk 0:00:24.8]} 16... Bxb7 {[%clk 0:00:46.1]} 17. Bxb7 {[%clk 0:00:23.3]} 17... Rxb7 {[%clk 0:00:45.9]} 18. Ba5 {[%clk 0:00:21.1]} 18... Bf6 {[%clk 0:00:45.4]} 19. b3 {[%clk 0:00:19.2]} 19... Rfb8 {[%clk 0:00:44.8]} 20. Rd3 {[%clk 0:00:16.1]} 20... c5 {[%clk 0:00:44.5]} 21. Rd5 {[%clk 0:00:14.2]} 21... Bg5+ {[%clk 0:00:44.1]} 22. Kc2 {[%clk 0:00:11.5]} 22... f6 {[%clk 0:00:43.5]} 23. Rhd1 {[%clk 0:00:10.2]} 23... Rf8 {[%clk 0:00:41.7]} 24. Rd8 {[%clk 0:00:09]} 24... Rb8 {[%clk 0:00:39.2]} 25. Rxf8+ {[%clk 0:00:07.5]} 25... Rxf8 {[%clk 0:00:39]} 26. Bc7 {[%clk 0:00:06.1]} 26... f5 {[%clk 0:00:38.6]} 27. Bd6 {[%clk 0:00:05.3]} 27... Re8 {[%clk 0:00:33.8]} 28. Bxc5 {[%clk 0:00:03.9]} 28... Kf7 {[%clk 0:00:33.5]} 29. Bxa7 {[%clk 0:00:02.1]} 29... Rc8 {[%clk 0:00:32.9]} 30. Bd4 {[%clk 0:00:01.1]} 30... Bf4 {[%clk 0:00:31.5]} 31. c5 {[%clk 0:00:01.1]} 31... Bxh2 {[%clk 0:00:30.7]} 0-1

[Event "Live Chess"]
[Site "Chess.com"]
[Date "2010.12.06"]
[Round "-"]
[White "cool1000"]
[Black "hipposcottimus"]
[Result "0-1"]
[CurrentPosition "3q4/p1p2kpp/4R3/7P/6PK/8/1r6/8 w - -"]
[Timezone "UTC"]
[ECO "C24"]
[ECOUrl "https://www.chess.com/openings/Bishops-Opening-Berlin-Defense"]
[UTCDate "2010.12.06"]
[UTCTime "20:11:00"]
[WhiteElo "1469"]
[BlackElo "1589"]
[TimeControl "60"]
[Termination "hipposcottimus won on time"]
[StartTime "20:11:00"]
[EndDate "2010.12.06"]
[EndTime "20:13:19"]
[Link "https://www.chess.com/game/live/74695852"]

1. e4 {[%clk 0:01:00]} 1... e5 {[%clk 0:01:00]} 2. Bc4 {[%clk 0:01:00]} 2... Nf6 {[%clk 0:00:55.2]} 3. Bxf7+ {[%clk 0:01:00]} 3... Kxf7 {[%clk 0:00:55]} 4. d3 {[%clk 0:01:00]} 4... Bc5 {[%clk 0:00:53.6]} 5. c3 {[%clk 0:01:00]} 5... Re8 {[%clk 0:00:52.6]} 6. Nf3 {[%clk 0:01:00]} 6... Kg8 {[%clk 0:00:51.7]} 7. Ng5 {[%clk 0:00:56.8]} 7... Be7 {[%clk 0:00:46.1]} 8. Qb3+ {[%clk 0:00:53.7]} 8... d5 {[%clk 0:00:44.4]} 9. exd5 {[%clk 0:00:52.4]} 9... Nxd5 {[%clk 0:00:43.7]} 10. c4 {[%clk 0:00:51.8]} 10... Bxg5 {[%clk 0:00:42.6]} 11. Bxg5 {[%clk 0:00:49]} 11... Qxg5 {[%clk 0:00:41.7]} 12. O-O {[%clk 0:00:48.2]} 12... Nf6 {[%clk 0:00:34.9]} 13. c5+ {[%clk 0:00:46.3]} 13... Be6 {[%clk 0:00:34.6]} 14. Qxb7 {[%clk 0:00:44.8]} 14... Bd5 {[%clk 0:00:29.4]} 15. Qxd5+ {[%clk 0:00:40.8]} 15... Nxd5 {[%clk 0:00:27.8]} 16. g3 {[%clk 0:00:39.8]} 16... Nc6 {[%clk 0:00:27.4]} 17. h4 {[%clk 0:00:38.5]} 17... Qg4 {[%clk 0:00:25.6]} 18. Nd2 {[%clk 0:00:37.2]} 18... Nf4 {[%clk 0:00:24.1]} 19. Nf3 {[%clk 0:00:35.1]} 19... Nh3+ {[%clk 0:00:23.4]} 20. Kg2 {[%clk 0:00:33.3]} 20... Nd4 {[%clk 0:00:22.5]} 21. Nh2 {[%clk 0:00:31.8]} 21... Qg6 {[%clk 0:00:17.6]} 22. Kxh3 {[%clk 0:00:29.9]} 22... Qf5+ {[%clk 0:00:16.3]} 23. Kg2 {[%clk 0:00:28.9]} 23... Qxd3 {[%clk 0:00:14.1]} 24. Kg1 {[%clk 0:00:27.5]} 24... Qe4 {[%clk 0:00:13.7]} 25. Rae1 {[%clk 0:00:24.8]} 25... Qc2 {[%clk 0:00:12.5]} 26. Ng4 {[%clk 0:00:21.6]} 26... Qxb2 {[%clk 0:00:11.8]} 27. Ne3 {[%clk 0:00:21.3]} 27... Qxa2 {[%clk 0:00:11]} 28. Nd5 {[%clk 0:00:20]} 28... Qxd5 {[%clk 0:00:09.2]} 29. c6 {[%clk 0:00:16.9]} 29... Nf3+ {[%clk 0:00:08.8]} 30. Kg2 {[%clk 0:00:13.7]} 30... Nxe1+ {[%clk 0:00:08.4]} 31. Kg1 {[%clk 0:00:13.7]} 31... e4 {[%clk 0:00:08.2]} 32. Rxe1 {[%clk 0:00:12.3]} 32... e3 {[%clk 0:00:07.9]} 33. fxe3 {[%clk 0:00:10.8]} 33... Rxe3 {[%clk 0:00:07.6]} 34. Rxe3 {[%clk 0:00:10.4]} 34... Rb8 {[%clk 0:00:07.3]} 35. Kh2 {[%clk 0:00:10.4]} 35... Rb2+ {[%clk 0:00:06.3]} 36. Kh3 {[%clk 0:00:07.7]} 36... Qf5+ {[%clk 0:00:05.9]} 37. g4 {[%clk 0:00:05.5]} 37... Qd5 {[%clk 0:00:05]} 38. h5 {[%clk 0:00:04]} 38... Qxc6 {[%clk 0:00:04.1]} 39. Kh4 {[%clk 0:00:04]} 39... Qd6 {[%clk 0:00:03]} 40. Re8+ {[%clk 0:00:02.7]} 40... Kf7 {[%clk 0:00:01.2]} 41. Re6 {[%clk 0:00:01.3]} 41... Qd8+ {[%clk 0:00:00.7]} 0-1

[Event "Live Chess"]
[Site "Chess.com"]
[Date "2010.12.06"]
[Round "-"]
[White "hipposcottimus"]
[Black "cool1000"]
[Result "0-1"]
[CurrentPosition "rkb5/p6p/1pr5/2R5/4q3/8/P5PP/1R5K w - -"]
[Timezone "UTC"]
[ECO "C40"]
[ECOUrl "https://www.chess.com/openings/Kings-Pawn-Opening-Kings-Knight-Busch-Gass-Gambit"]
[UTCDate "2010.12.06"]
[UTCTime "20:08:23"]
[WhiteElo "1583"]
[BlackElo "1475"]
[TimeControl "60"]
[Termination "cool1000 won on time"]
[StartTime "20:08:23"]
[EndDate "2010.12.06"]
[EndTime "20:10:28"]
[Link "https://www.chess.com/game/live/74695149"]

1. e4 {[%clk 0:01:00]} 1... e5 {[%clk 0:01:00]} 2. Nf3 {[%clk 0:00:59.6]} 2... Bc5 {[%clk 0:01:00]} 3. Bc4 {[%clk 0:00:58.3]} 3... Bxf2+ {[%clk 0:01:00]} 4. Kxf2 {[%clk 0:00:56.8]} 4... d6 {[%clk 0:01:00]} 5. Re1 {[%clk 0:00:55.3]} 5... c6 {[%clk 0:01:00]} 6. Kg1 {[%clk 0:00:54.9]} 6... Nf6 {[%clk 0:00:58.3]} 7. Bb3 {[%clk 0:00:54.4]} 7... Ng4 {[%clk 0:00:56]} 8. d3 {[%clk 0:00:47.8]} 8... Qb6+ {[%clk 0:00:54.5]} 9. d4 {[%clk 0:00:43.7]} 9... exd4 {[%clk 0:00:50]} 10. Nxd4 {[%clk 0:00:42.9]} 10... c5 {[%clk 0:00:47.4]} 11. Rf1 {[%clk 0:00:34.9]} 11... cxd4 {[%clk 0:00:45]} 12. Bxf7+ {[%clk 0:00:33.3]} 12... Kd7 {[%clk 0:00:43.2]} 13. Qxg4+ {[%clk 0:00:25.2]} 13... Kc7 {[%clk 0:00:42.2]} 14. Qxg7 {[%clk 0:00:21.1]} 14... d3+ {[%clk 0:00:41.2]} 15. Kh1 {[%clk 0:00:20.6]} 15... Rd8 {[%clk 0:00:34.6]} 16. Na3 {[%clk 0:00:19]} 16... Nd7 {[%clk 0:00:34.6]} 17. Bf4 {[%clk 0:00:16.9]} 17... dxc2 {[%clk 0:00:30.7]} 18. Nxc2 {[%clk 0:00:15.7]} 18... Qxb2 {[%clk 0:00:29.6]} 19. Ne3 {[%clk 0:00:13]} 19... Qxg7 {[%clk 0:00:27]} 20. Nd5+ {[%clk 0:00:12.2]} 20... Kb8 {[%clk 0:00:24.8]} 21. Be6 {[%clk 0:00:10.4]} 21... Nc5 {[%clk 0:00:19.4]} 22. Bxd6+ {[%clk 0:00:10.1]} 22... Rxd6 {[%clk 0:00:18.1]} 23. Rac1 {[%clk 0:00:04.5]} 23... b6 {[%clk 0:00:15.2]} 24. Rb1 {[%clk 0:00:04.1]} 24... Rxe6 {[%clk 0:00:13.7]} 25. Rfc1 {[%clk 0:00:03.4]} 25... Rc6 {[%clk 0:00:10.8]} 26. Ne7 {[%clk 0:00:00.7]} 26... Qxe7 {[%clk 0:00:09.7]} 27. Rxc5 {[%clk 0:00:00.4]} 27... Qxe4 {[%clk 0:00:08.3]} 0-1